[Event "Titled Tuesday Blitz November 15 Early 2022"]
[White "Kostiukov, Alexandr"]
[Black "Marcolino, Daniel Mattos"]
[WhiteFideId "14108100"]
[BlackFideId "2106841"]
[WhiteElo "2202"]
[BlackElo "2115"]
[Result "1-0"]
[Round "08"]
[TimeControl "180+1"]
[Date "2022.11.16"]
[WhiteClock "0:01:12"]
[BlackClock "0:00:01"]

1. c4 {[%clk 0:02:50]}  e6 {[%clk 0:02:59]} 2. g3 {[%clk 0:02:50]}  d5 {[%clk 0:02:59]} 3. Bg2 {[%clk 0:02:50]}  Nf6 {[%clk 0:02:59]} 4. Nf3 {[%clk 0:02:51]}  b6 {[%clk 0:02:57]} 5. O-O {[%clk 0:02:50]}  Bb7 {[%clk 0:02:57]} 6. d4 {[%clk 0:02:46]}  Be7 {[%clk 0:02:52]} 7. Nc3 {[%clk 0:02:45]}  O-O {[%clk 0:02:51]} 8. Ne5 {[%clk 0:02:46]}  c5 {[%clk 0:02:28]} 9. dxc5 {[%clk 0:02:39]}  Bxc5 {[%clk 0:02:27]} 10. cxd5 {[%clk 0:02:30]}  exd5 {[%clk 0:02:19]} 11. Bg5 {[%clk 0:02:24]}  Qd6 {[%clk 0:01:13]} 12. Nc4 {[%clk 0:02:00]}  Qe6 {[%clk 0:00:57]} 13. Bxf6 {[%clk 0:01:58]}  gxf6 {[%clk 0:00:37]} 14. Bxd5 {[%clk 0:01:43]}  Bxd5 {[%clk 0:00:36]} 15. Qxd5 {[%clk 0:01:43]}  Qxd5 {[%clk 0:00:36]} 16. Nxd5 {[%clk 0:01:43]}  Nc6 {[%clk 0:00:34]} 17. Nxf6+ {[%clk 0:01:42]}  Kg7 {[%clk 0:00:34]} 18. Nd7 {[%clk 0:01:41]}  Rfd8 {[%clk 0:00:30]} 19. Nxc5 {[%clk 0:01:39]}  bxc5 {[%clk 0:00:31]} 20. Rfd1 {[%clk 0:01:37]}  Nd4 {[%clk 0:00:29]} 21. e3 {[%clk 0:01:36]}  Nc2 {[%clk 0:00:18]} 22. Rac1 {[%clk 0:01:27]}  Nb4 {[%clk 0:00:18]} 23. a3 {[%clk 0:01:20]}  Nd3 {[%clk 0:00:18]} 24. Rc3 {[%clk 0:01:14]}  Nxf2 {[%clk 0:00:01]} 25. Rxd8 {[%clk 0:01:12]}  Ne4 {[%clk 0:00:01]} 1-0


[Site "https://www.chess.com"]

[Event "Titled Tuesday Blitz November 15 Early 2022"]
[White "Kryakvin, Dmitry"]
[Black "Valle Maytin, Luis Enrique"]
[WhiteFideId "4153278"]
[BlackFideId "3503666"]
[WhiteElo "2414"]
[BlackElo "2225"]
[Result "1-0"]
[Round "08"]
[TimeControl "180+1"]
[Date "2022.11.16"]
[WhiteClock "0:01:55"]
[BlackClock "0:01:19"]

1. d4 {[%clk 0:03:00]}  Nf6 {[%clk 0:02:59]} 2. c4 {[%clk 0:03:00]}  e6 {[%clk 0:02:59]} 3. Nf3 {[%clk 0:02:59]}  d5 {[%clk 0:02:54]} 4. Bg5 {[%clk 0:02:58]}  Be7 {[%clk 0:02:54]} 5. e3 {[%clk 0:02:58]}  c6 {[%clk 0:02:49]} 6. Nc3 {[%clk 0:02:57]}  Nbd7 {[%clk 0:02:49]} 7. Qc2 {[%clk 0:02:56]}  h6 {[%clk 0:02:48]} 8. Bh4 {[%clk 0:02:56]}  g5 {[%clk 0:02:46]} 9. Bg3 {[%clk 0:02:56]}  Nh5 {[%clk 0:02:46]} 10. Bd3 {[%clk 0:02:51]}  Nxg3 {[%clk 0:02:46]} 11. hxg3 {[%clk 0:02:51]}  Nf6 {[%clk 0:02:40]} 12. Nxg5 {[%clk 0:02:49]}  dxc4 {[%clk 0:02:38]} 13. Bxc4 {[%clk 0:02:48]}  b5 {[%clk 0:02:36]} 14. Bd3 {[%clk 0:02:42]}  b4 {[%clk 0:02:35]} 15. Nce4 {[%clk 0:02:41]}  Nd5 {[%clk 0:02:21]} 16. Nf3 {[%clk 0:02:34]}  Bd7 {[%clk 0:02:14]} 17. Ne5 {[%clk 0:02:33]}  b3 {[%clk 0:02:14]} 18. Qxb3 {[%clk 0:02:24]}  Rb8 {[%clk 0:02:07]} 19. Qd1 {[%clk 0:02:24]}  Qa5+ {[%clk 0:02:04]} 20. Kf1 {[%clk 0:02:23]}  Rxb2 {[%clk 0:02:02]} 21. Nc4 {[%clk 0:02:16]}  Qb5 {[%clk 0:01:30]} 22. Ncd6+ {[%clk 0:02:14]}  Bxd6 {[%clk 0:01:26]} 23. Nxd6+ {[%clk 0:02:14]}  Ke7 {[%clk 0:01:26]} 24. Nxb5 {[%clk 0:02:12]}  cxb5 {[%clk 0:01:26]} 25. Qc1 {[%clk 0:02:10]}  Rb4 {[%clk 0:01:22]} 26. Qc5+ {[%clk 0:02:10]}  Kf6 {[%clk 0:01:22]} 27. e4 {[%clk 0:01:57]}  Rc8 {[%clk 0:01:21]} 28. exd5 {[%clk 0:01:54]}  Rxc5 {[%clk 0:01:18]} 29. dxc5 {[%clk 0:01:55]}  exd5 {[%clk 0:01:19]} 1-0


[Site "https://www.chess.com"]

[Event "Titled Tuesday Blitz November 15 Early 2022"]
[White "Lauridsen, Jesper Morch"]
[Black "Garv Gaur"]
[WhiteFideId "1401890"]
[BlackFideId "45030839"]
[WhiteElo "2222"]
[BlackElo "1960"]
[Result "0-1"]
[Round "08"]
[TimeControl "180+1"]
[Date "2022.11.16"]
[WhiteClock "0:00:24"]
[BlackClock "0:00:16"]

1. e4 {[%clk 0:03:00]}  c6 {[%clk 0:02:53]} 2. d4 {[%clk 0:03:00]}  d5 {[%clk 0:02:54]} 3. Nc3 {[%clk 0:02:59]}  dxe4 {[%clk 0:02:54]} 4. f3 {[%clk 0:02:59]}  exf3 {[%clk 0:02:52]} 5. Nxf3 {[%clk 0:02:59]}  Nf6 {[%clk 0:02:48]} 6. Bd3 {[%clk 0:02:58]}  c5 {[%clk 0:02:38]} 7. d5 {[%clk 0:02:49]}  a6 {[%clk 0:02:31]} 8. O-O {[%clk 0:02:44]}  g6 {[%clk 0:02:28]} 9. Bf4 {[%clk 0:02:40]}  Bg7 {[%clk 0:02:27]} 10. Qd2 {[%clk 0:02:40]}  O-O {[%clk 0:02:26]} 11. Bh6 {[%clk 0:02:39]}  Nxd5 {[%clk 0:02:19]} 12. Bxg7 {[%clk 0:02:38]}  Kxg7 {[%clk 0:02:19]} 13. Nxd5 {[%clk 0:02:32]}  Qxd5 {[%clk 0:02:20]} 14. Qc3+ {[%clk 0:02:32]}  Kg8 {[%clk 0:02:14]} 15. Rad1 {[%clk 0:02:32]}  Qh5 {[%clk 0:02:08]} 16. Be4 {[%clk 0:02:16]}  Nc6 {[%clk 0:02:06]} 17. Rd5 {[%clk 0:02:15]}  Qh6 {[%clk 0:02:01]} 18. Rxc5 {[%clk 0:02:10]}  Bd7 {[%clk 0:01:59]} 19. Bxc6 {[%clk 0:02:00]}  Bxc6 {[%clk 0:01:57]} 20. Ne5 {[%clk 0:02:00]}  Be4 {[%clk 0:01:43]} 21. Ng4 {[%clk 0:01:48]}  Qg7 {[%clk 0:01:34]} 22. Qe3 {[%clk 0:01:39]}  f5 {[%clk 0:01:32]} 23. Rc7 {[%clk 0:01:15]}  fxg4 {[%clk 0:01:18]} 24. Qxe4 {[%clk 0:01:10]}  Rxf1+ {[%clk 0:01:16]} 25. Kxf1 {[%clk 0:01:11]}  Qf6+ {[%clk 0:01:17]} 26. Ke2 {[%clk 0:01:04]}  Re8 {[%clk 0:00:58]} 27. Qxb7 {[%clk 0:00:54]}  Qe5+ {[%clk 0:00:55]} 28. Kd2 {[%clk 0:00:47]}  Rd8+ {[%clk 0:00:44]} 29. Rd7 {[%clk 0:00:47]}  Qf4+ {[%clk 0:00:40]} 30. Kd1 {[%clk 0:00:42]}  Qf1+ {[%clk 0:00:32]} 31. Kd2 {[%clk 0:00:41]}  Qf2+ {[%clk 0:00:32]} 32. Kd1 {[%clk 0:00:39]}  Qg1+ {[%clk 0:00:28]} 33. Kd2 {[%clk 0:00:37]}  Rxd7+ {[%clk 0:00:25]} 34. Qxd7 {[%clk 0:00:36]}  Qxg2+ {[%clk 0:00:25]} 35. Kc3 {[%clk 0:00:36]}  Qxh2 {[%clk 0:00:23]} 36. Qxg4 {[%clk 0:00:27]}  Qe5+ {[%clk 0:00:23]} 37. Kb3 {[%clk 0:00:26]}  Qd5+ {[%clk 0:00:20]} 38. c4 {[%clk 0:00:24]}  Qd3+ {[%clk 0:00:20]} 39. Kb4 {[%clk 0:00:24]}  Qd6+ {[%clk 0:00:20]} 40. c5 {[%clk 0:00:23]}  Qd2+ {[%clk 0:00:18]} 41. Ka3 {[%clk 0:00:22]}  Qa5+ {[%clk 0:00:18]} 42. Kb3 {[%clk 0:00:22]}  Qxc5 {[%clk 0:00:18]} 43. Qe6+ {[%clk 0:00:22]}  Kf8 {[%clk 0:00:18]} 44. a4 {[%clk 0:00:22]}  Qd6 {[%clk 0:00:15]} 45. Qc8+ {[%clk 0:00:21]}  Kg7 {[%clk 0:00:16]} 46. Qc3+ {[%clk 0:00:20]}  Qf6 {[%clk 0:00:16]} 47. a5 {[%clk 0:00:20]}  Qxc3+ {[%clk 0:00:13]} 48. Kxc3 {[%clk 0:00:21]}  h5 {[%clk 0:00:13]} 49. b4 {[%clk 0:00:21]}  h4 {[%clk 0:00:14]} 50. b5 {[%clk 0:00:22]}  h3 {[%clk 0:00:13]} 51. b6 {[%clk 0:00:22]}  h2 {[%clk 0:00:13]} 52. b7 {[%clk 0:00:23]}  h1=Q {[%clk 0:00:14]} 53. b8=Q {[%clk 0:00:23]}  Qc6+ {[%clk 0:00:13]} 54. Kd4 {[%clk 0:00:22]}  Qd6+ {[%clk 0:00:12]} 55. Qxd6 {[%clk 0:00:22]}  exd6 {[%clk 0:00:13]} 56. Kd5 {[%clk 0:00:21]}  g5 {[%clk 0:00:14]} 57. Kc6 {[%clk 0:00:22]}  g4 {[%clk 0:00:14]} 58. Kb6 {[%clk 0:00:22]}  g3 {[%clk 0:00:15]} 59. Kxa6 {[%clk 0:00:23]}  g2 {[%clk 0:00:16]} 60. Kb7 {[%clk 0:00:23]}  g1=Q {[%clk 0:00:16]} 61. a6 {[%clk 0:00:24]}  Qb1+ {[%clk 0:00:16]} 62. Ka8 {[%clk 0:00:23]}  Qa2 {[%clk 0:00:15]} 63. a7 {[%clk 0:00:23]}  d5 {[%clk 0:00:15]} 64. Kb7 {[%clk 0:00:24]}  d4 {[%clk 0:00:16]} 0-1


[Site "https://www.chess.com"]

[Event "Titled Tuesday Blitz November 15 Early 2022"]
[White "Leve, Nitai"]
[Black "Orlov, Georgi"]
[WhiteFideId "2006898"]
[BlackFideId "2011271"]
[WhiteElo "2144"]
[BlackElo "2539"]
[Result "1-0"]
[Round "08"]
[TimeControl "180+1"]
[Date "2022.11.16"]
[WhiteClock "0:00:19"]
[BlackClock "0:00:04"]

1. e4 {[%clk 0:03:00]}  c5 {[%clk 0:02:57]} 2. Nf3 {[%clk 0:03:00]}  e6 {[%clk 0:02:57]} 3. d4 {[%clk 0:03:01]}  cxd4 {[%clk 0:02:57]} 4. Nxd4 {[%clk 0:03:02]}  Qb6 {[%clk 0:02:57]} 5. Nb3 {[%clk 0:03:01]}  Nc6 {[%clk 0:02:55]} 6. Nc3 {[%clk 0:03:01]}  Bb4 {[%clk 0:02:49]} 7. Be3 {[%clk 0:03:01]}  Qc7 {[%clk 0:02:49]} 8. g3 {[%clk 0:02:55]}  Nf6 {[%clk 0:02:41]} 9. Bg2 {[%clk 0:02:55]}  h5 {[%clk 0:02:41]} 10. O-O {[%clk 0:02:52]}  a6 {[%clk 0:02:35]} 11. Na4 {[%clk 0:02:31]}  h4 {[%clk 0:02:18]} 12. Nb6 {[%clk 0:02:25]}  Rb8 {[%clk 0:02:17]} 13. Nc4 {[%clk 0:02:06]}  b5 {[%clk 0:02:12]} 14. Bf4 {[%clk 0:01:30]}  e5 {[%clk 0:02:12]} 15. Nxe5 {[%clk 0:01:31]}  Nxe5 {[%clk 0:02:12]} 16. Qd4 {[%clk 0:01:32]}  Bd6 {[%clk 0:02:07]} 17. Rad1 {[%clk 0:01:31]}  Nf3+ {[%clk 0:02:01]} 18. Bxf3 {[%clk 0:01:28]}  Bxf4 {[%clk 0:02:01]} 19. gxf4 {[%clk 0:00:38]}  Qxf4 {[%clk 0:02:00]} 20. Rd3 {[%clk 0:00:39]}  Ng4 {[%clk 0:00:25]} 21. Bxg4 {[%clk 0:00:28]}  Qxg4+ {[%clk 0:00:25]} 22. Kh1 {[%clk 0:00:28]}  Bb7 {[%clk 0:00:19]} 23. Qe5+ {[%clk 0:00:28]}  Kd8 {[%clk 0:00:12]} 24. Qxb8+ {[%clk 0:00:29]}  Ke7 {[%clk 0:00:12]} 25. Qxb7 {[%clk 0:00:25]}  Rh6 {[%clk 0:00:09]} 26. Rfd1 {[%clk 0:00:18]}  Rg6 {[%clk 0:00:04]} 27. Qxd7+ {[%clk 0:00:18]}  Qxd7 {[%clk 0:00:03]} 28. Rxd7+ {[%clk 0:00:19]}  Ke6 {[%clk 0:00:04]} 29. R1d6+ {[%clk 0:00:19]} 1-0


[Site "https://www.chess.com"]

[Event "Titled Tuesday Blitz November 15 Early 2022"]
[White "Makhmudov, Shukhrat"]
[Black "Vlassov, Nikolai"]
[WhiteFideId "14200775"]
[BlackFideId "4103360"]
[WhiteElo "2135"]
[BlackElo "2324"]
[Result "0-1"]
[Round "08"]
[TimeControl "180+1"]
[Date "2022.11.16"]
[WhiteClock "0:00:16"]
[BlackClock "0:01:10"]

1. e4 {[%clk 0:03:00]}  Nc6 {[%clk 0:02:59]} 2. Nc3 {[%clk 0:02:57]}  Nf6 {[%clk 0:02:58]} 3. d4 {[%clk 0:02:52]}  d5 {[%clk 0:02:58]} 4. e5 {[%clk 0:02:52]}  Nd7 {[%clk 0:02:58]} 5. Nf3 {[%clk 0:02:44]}  Nb6 {[%clk 0:02:57]} 6. Ne2 {[%clk 0:02:25]}  Bg4 {[%clk 0:02:56]} 7. Nfg1 {[%clk 0:02:01]}  e6 {[%clk 0:02:55]} 8. c3 {[%clk 0:01:49]}  f6 {[%clk 0:02:54]} 9. f3 {[%clk 0:01:32]}  Bf5 {[%clk 0:02:51]} 10. f4 {[%clk 0:01:23]}  Qd7 {[%clk 0:02:43]} 11. a4 {[%clk 0:01:19]}  a6 {[%clk 0:02:24]} 12. Ng3 {[%clk 0:01:10]}  Bg6 {[%clk 0:02:15]} 13. b4 {[%clk 0:01:05]}  fxe5 {[%clk 0:01:57]} 14. fxe5 {[%clk 0:00:59]}  Bxb4 {[%clk 0:01:55]} 15. cxb4 {[%clk 0:00:52]}  Nxb4 {[%clk 0:01:55]} 16. Kf2 {[%clk 0:00:35]}  O-O+ {[%clk 0:01:39]} 17. Nf3 {[%clk 0:00:35]}  Nc4 {[%clk 0:01:29]} 18. Bxc4 {[%clk 0:00:32]}  dxc4 {[%clk 0:01:29]} 19. Rf1 {[%clk 0:00:18]}  Bd3 {[%clk 0:01:28]} 20. Re1 {[%clk 0:00:16]}  Nc2 {[%clk 0:01:23]} 21. Ba3 {[%clk 0:00:16]}  Qxd4+ {[%clk 0:01:10]} 0-1


[Site "https://www.chess.com"]

[Event "Titled Tuesday Blitz November 15 Early 2022"]
[White "Makridis, Dimitrios"]
[Black "Abrahamyan, Tatev"]
[WhiteFideId "25864475"]
[BlackFideId "13301918"]
[WhiteElo "2272"]
[BlackElo "2347"]
[Result "1-0"]
[Round "08"]
[TimeControl "180+1"]
[Date "2022.11.16"]
[WhiteClock "0:01:30"]
[BlackClock "0:00:06"]

1. e4 {[%clk 0:03:00]}  e6 {[%clk 0:02:26]} 2. Nc3 {[%clk 0:03:01]}  d5 {[%clk 0:02:24]} 3. d4 {[%clk 0:03:01]}  Bb4 {[%clk 0:02:23]} 4. e5 {[%clk 0:02:57]}  c5 {[%clk 0:02:23]} 5. a3 {[%clk 0:02:57]}  Bxc3+ {[%clk 0:02:23]} 6. bxc3 {[%clk 0:02:58]}  Ne7 {[%clk 0:02:23]} 7. h4 {[%clk 0:02:55]}  Nbc6 {[%clk 0:02:23]} 8. h5 {[%clk 0:02:53]}  h6 {[%clk 0:02:23]} 9. Qg4 {[%clk 0:02:50]}  Nf5 {[%clk 0:02:19]} 10. Nf3 {[%clk 0:02:36]}  Qa5 {[%clk 0:02:14]} 11. Bd2 {[%clk 0:02:35]}  Bd7 {[%clk 0:02:13]} 12. Bd3 {[%clk 0:02:33]}  Rg8 {[%clk 0:02:12]} 13. dxc5 {[%clk 0:02:25]}  Qxc5 {[%clk 0:02:03]} 14. Bxf5 {[%clk 0:02:24]}  exf5 {[%clk 0:02:03]} 15. Qf4 {[%clk 0:02:24]}  O-O-O {[%clk 0:01:53]} 16. a4 {[%clk 0:02:15]}  Be6 {[%clk 0:01:38]} 17. Nd4 {[%clk 0:02:12]}  Rde8 {[%clk 0:01:11]} 18. Nb5 {[%clk 0:02:10]}  Kb8 {[%clk 0:00:40]} 19. Be3 {[%clk 0:01:58]}  Qc4 {[%clk 0:00:40]} 20. Qxc4 {[%clk 0:01:56]}  dxc4 {[%clk 0:00:40]} 21. Bc5 {[%clk 0:01:56]}  a6 {[%clk 0:00:37]} 22. Bd6+ {[%clk 0:01:55]}  Kc8 {[%clk 0:00:37]} 23. Nc7 {[%clk 0:01:46]}  Rd8 {[%clk 0:00:35]} 24. Rb1 {[%clk 0:01:37]}  Rd7 {[%clk 0:00:24]} 25. Na8 {[%clk 0:01:32]}  f6 {[%clk 0:00:05]} 26. Nb6+ {[%clk 0:01:30]}  Kd8 {[%clk 0:00:06]} 27. Nxd7 {[%clk 0:01:31]}  Kxd7 {[%clk 0:00:06]} 28. Rxb7+ {[%clk 0:01:30]} 1-0


[Site "https://www.chess.com"]

[Event "Titled Tuesday Blitz November 15 Early 2022"]
[White "Matinian, Nikita"]
[Black "Raahul V S"]
[WhiteFideId "24129100"]
[BlackFideId "25035525"]
[WhiteElo "2422"]
[BlackElo "2233"]
[Result "1-0"]
[Round "08"]
[TimeControl "180+1"]
[Date "2022.11.16"]
[WhiteClock "0:00:07"]
[BlackClock "0:00:02"]

1. e4 {[%clk 0:03:00]}  e6 {[%clk 0:02:58]} 2. d4 {[%clk 0:03:00]}  d5 {[%clk 0:02:55]} 3. Nc3 {[%clk 0:03:01]}  Nf6 {[%clk 0:02:53]} 4. e5 {[%clk 0:03:01]}  Nfd7 {[%clk 0:02:53]} 5. f4 {[%clk 0:03:01]}  c5 {[%clk 0:02:53]} 6. Nf3 {[%clk 0:03:02]}  Nc6 {[%clk 0:02:53]} 7. Be3 {[%clk 0:03:03]}  Be7 {[%clk 0:02:52]} 8. Qd2 {[%clk 0:03:03]}  O-O {[%clk 0:02:50]} 9. dxc5 {[%clk 0:03:03]}  Qa5 {[%clk 0:02:49]} 10. Nb5 {[%clk 0:03:01]}  Qxd2+ {[%clk 0:02:38]} 11. Nxd2 {[%clk 0:03:02]}  Bxc5 {[%clk 0:02:38]} 12. Bxc5 {[%clk 0:02:59]}  Nxc5 {[%clk 0:02:39]} 13. O-O-O {[%clk 0:02:57]}  Bd7 {[%clk 0:02:33]} 14. h4 {[%clk 0:02:57]}  Nb4 {[%clk 0:02:28]} 15. a3 {[%clk 0:02:43]}  Nbd3+ {[%clk 0:02:22]} 16. Bxd3 {[%clk 0:02:43]}  Nxd3+ {[%clk 0:02:22]} 17. cxd3 {[%clk 0:02:44]}  Bxb5 {[%clk 0:02:23]} 18. Nf3 {[%clk 0:02:44]}  Rac8+ {[%clk 0:02:20]} 19. Kd2 {[%clk 0:02:44]}  Ba4 {[%clk 0:02:08]} 20. Rc1 {[%clk 0:02:43]}  f6 {[%clk 0:02:07]} 21. exf6 {[%clk 0:02:41]}  gxf6 {[%clk 0:02:06]} 22. Nd4 {[%clk 0:02:37]}  Kf7 {[%clk 0:02:06]} 23. g4 {[%clk 0:02:35]}  Bd7 {[%clk 0:01:57]} 24. g5 {[%clk 0:02:34]}  e5 {[%clk 0:01:49]} 25. fxe5 {[%clk 0:02:27]}  fxe5 {[%clk 0:01:50]} 26. Rhf1+ {[%clk 0:02:22]}  Ke7 {[%clk 0:01:50]} 27. Ne2 {[%clk 0:01:28]}  Rxc1 {[%clk 0:01:38]} 28. Rxc1 {[%clk 0:01:29]}  Kd6 {[%clk 0:01:37]} 29. Rg1 {[%clk 0:01:23]}  Rf2 {[%clk 0:01:35]} 30. h5 {[%clk 0:01:21]}  Ke7 {[%clk 0:01:08]} 31. g6 {[%clk 0:01:17]}  hxg6 {[%clk 0:01:08]} 32. hxg6 {[%clk 0:01:18]}  Kf8 {[%clk 0:01:07]} 33. g7+ {[%clk 0:01:15]}  Kg8 {[%clk 0:01:07]} 34. Rg5 {[%clk 0:01:16]}  e4 {[%clk 0:00:54]} 35. Ke1 {[%clk 0:01:14]}  Rf5 {[%clk 0:00:53]} 36. Rg3 {[%clk 0:00:52]}  exd3 {[%clk 0:00:50]} 37. Nc3 {[%clk 0:00:52]}  Be6 {[%clk 0:00:42]} 38. Nb5 {[%clk 0:00:47]}  Re5+ {[%clk 0:00:27]} 39. Kd2 {[%clk 0:00:41]}  Re2+ {[%clk 0:00:25]} 40. Kxd3 {[%clk 0:00:41]}  Rxb2 {[%clk 0:00:25]} 41. Nd4 {[%clk 0:00:41]}  Bf7 {[%clk 0:00:23]} 42. Rg5 {[%clk 0:00:38]}  Rf2 {[%clk 0:00:21]} 43. Kc3 {[%clk 0:00:35]}  Kh7 {[%clk 0:00:06]} 44. Nf5 {[%clk 0:00:20]}  Rf4 {[%clk 0:00:03]} 45. Ne7 {[%clk 0:00:14]}  Bg8 {[%clk 0:00:03]} 46. Ng6 {[%clk 0:00:14]}  Rc4+ {[%clk 0:00:02]} 47. Kd2 {[%clk 0:00:12]}  Kxg7 {[%clk 0:00:02]} 48. Ne5+ {[%clk 0:00:06]}  Kf6 {[%clk 0:00:02]} 49. Nxc4 {[%clk 0:00:06]}  Kxg5 {[%clk 0:00:02]} 50. Nd6 {[%clk 0:00:07]} 1-0


[Site "https://www.chess.com"]

[Event "Titled Tuesday Blitz November 15 Early 2022"]
[White "Mejia, Cherry Ann"]
[Black "Ristic, Nebojsa B"]
[WhiteFideId "5206880"]
[BlackFideId "935468"]
[WhiteElo "2007"]
[BlackElo "2320"]
[Result "1/2-1/2"]
[Round "08"]
[TimeControl "180+1"]
[Date "2022.11.16"]
[WhiteClock "0:00:20"]
[BlackClock "0:01:10"]

1. e4 {[%clk 0:03:00]}  Nc6 {[%clk 0:02:59]} 2. Nf3 {[%clk 0:03:00]}  d6 {[%clk 0:02:59]} 3. Bb5 {[%clk 0:02:50]}  a6 {[%clk 0:02:59]} 4. Ba4 {[%clk 0:02:50]}  Nf6 {[%clk 0:02:55]} 5. Qe2 {[%clk 0:02:50]}  b5 {[%clk 0:02:51]} 6. Bb3 {[%clk 0:02:50]}  e6 {[%clk 0:02:48]} 7. c3 {[%clk 0:02:42]}  Be7 {[%clk 0:02:47]} 8. d4 {[%clk 0:02:42]}  e5 {[%clk 0:02:45]} 9. O-O {[%clk 0:02:37]}  O-O {[%clk 0:02:44]} 10. h3 {[%clk 0:02:37]}  h6 {[%clk 0:02:43]} 11. Rd1 {[%clk 0:02:37]}  exd4 {[%clk 0:02:33]} 12. cxd4 {[%clk 0:02:37]}  d5 {[%clk 0:02:14]} 13. Nc3 {[%clk 0:02:28]}  dxe4 {[%clk 0:02:03]} 14. Nxe4 {[%clk 0:02:28]}  Bb7 {[%clk 0:02:00]} 15. Ng3 {[%clk 0:02:01]}  Re8 {[%clk 0:01:53]} 16. Ne5 {[%clk 0:01:40]}  Nd5 {[%clk 0:01:46]} 17. Nxf7 {[%clk 0:01:32]}  Qd7 {[%clk 0:01:32]} 18. Nxh6+ {[%clk 0:01:14]}  gxh6 {[%clk 0:01:24]} 19. Qh5 {[%clk 0:01:14]}  Na5 {[%clk 0:01:17]} 20. Qg6+ {[%clk 0:01:14]}  Kh8 {[%clk 0:01:17]} 21. Qxh6+ {[%clk 0:01:14]}  Kg8 {[%clk 0:01:17]} 22. Qg6+ {[%clk 0:00:57]}  Kh8 {[%clk 0:01:16]} 23. Qh6+ {[%clk 0:00:25]}  Kg8 {[%clk 0:01:13]} 24. Qg6+ {[%clk 0:00:20]}  Kh8 {[%clk 0:01:10]} 25. Qh6+ {[%clk 0:00:20]} 1/2-1/2


[Site "https://www.chess.com"]

[Event "Titled Tuesday Blitz November 15 Early 2022"]
[White "Melikhov, Evgeny V."]
[Black "Deev, Andrei"]
[WhiteFideId "4122046"]
[BlackFideId "4102690"]
[WhiteElo "2169"]
[BlackElo "2285"]
[Result "1-0"]
[Round "08"]
[TimeControl "180+1"]
[Date "2022.11.16"]
[WhiteClock "0:00:06"]
[BlackClock "0:00:01"]

1. d4 {[%clk 0:02:58]}  d6 {[%clk 0:03:00]} 2. e4 {[%clk 0:02:56]}  Nf6 {[%clk 0:02:59]} 3. Bd3 {[%clk 0:02:56]}  c5 {[%clk 0:02:57]} 4. d5 {[%clk 0:02:52]}  g6 {[%clk 0:02:56]} 5. h3 {[%clk 0:02:49]}  Bg7 {[%clk 0:02:55]} 6. Nf3 {[%clk 0:02:49]}  O-O {[%clk 0:02:51]} 7. O-O {[%clk 0:02:45]}  c4 {[%clk 0:02:49]} 8. Bxc4 {[%clk 0:02:43]}  Nxe4 {[%clk 0:02:49]} 9. Re1 {[%clk 0:02:40]}  Nf6 {[%clk 0:02:47]} 10. Nc3 {[%clk 0:02:36]}  a6 {[%clk 0:02:47]} 11. a4 {[%clk 0:02:35]}  Nbd7 {[%clk 0:02:44]} 12. Be3 {[%clk 0:02:24]}  Qc7 {[%clk 0:02:39]} 13. b3 {[%clk 0:01:55]}  b6 {[%clk 0:02:38]} 14. Qd2 {[%clk 0:01:51]}  Re8 {[%clk 0:02:34]} 15. Rac1 {[%clk 0:01:45]}  Bb7 {[%clk 0:02:30]} 16. Bd4 {[%clk 0:01:38]}  Nc5 {[%clk 0:02:06]} 17. Re2 {[%clk 0:01:07]}  e5 {[%clk 0:01:57]} 18. dxe6 {[%clk 0:01:06]}  fxe6 {[%clk 0:01:57]} 19. Bxc5 {[%clk 0:00:59]}  dxc5 {[%clk 0:01:55]} 20. Rxe6 {[%clk 0:00:56]}  Kh8 {[%clk 0:01:45]} 21. Ng5 {[%clk 0:00:46]}  h6 {[%clk 0:01:41]} 22. Qd6 {[%clk 0:00:23]}  Qxd6 {[%clk 0:01:17]} 23. Nf7+ {[%clk 0:00:22]}  Kh7 {[%clk 0:01:13]} 24. Nxd6 {[%clk 0:00:23]}  Rxe6 {[%clk 0:01:11]} 25. Bxe6 {[%clk 0:00:23]}  Bc6 {[%clk 0:01:08]} 26. Bc4 {[%clk 0:00:16]}  Nh5 {[%clk 0:01:04]} 27. Nde4 {[%clk 0:00:12]}  Nf4 {[%clk 0:00:59]} 28. Rd1 {[%clk 0:00:10]}  b5 {[%clk 0:00:58]} 29. axb5 {[%clk 0:00:10]}  axb5 {[%clk 0:00:58]} 30. Bd5 {[%clk 0:00:10]}  Nxd5 {[%clk 0:00:43]} 31. Nxd5 {[%clk 0:00:10]}  c4 {[%clk 0:00:32]} 32. bxc4 {[%clk 0:00:09]}  bxc4 {[%clk 0:00:32]} 33. Ndf6+ {[%clk 0:00:09]}  Kh8 {[%clk 0:00:31]} 34. Rd6 {[%clk 0:00:08]}  Rc8 {[%clk 0:00:21]} 35. g3 {[%clk 0:00:07]}  Bf8 {[%clk 0:00:17]} 36. Re6 {[%clk 0:00:06]}  Kg7 {[%clk 0:00:15]} 37. g4 {[%clk 0:00:05]}  Kf7 {[%clk 0:00:15]} 38. Re5 {[%clk 0:00:05]}  Bg7 {[%clk 0:00:13]} 39. g5 {[%clk 0:00:04]}  Bxf6 {[%clk 0:00:11]} 40. gxf6 {[%clk 0:00:04]}  Bxe4 {[%clk 0:00:07]} 41. Rxe4 {[%clk 0:00:04]}  Kxf6 {[%clk 0:00:07]} 42. Kg2 {[%clk 0:00:05]}  Kf5 {[%clk 0:00:08]} 43. Rd4 {[%clk 0:00:05]}  Ke5 {[%clk 0:00:07]} 44. c3 {[%clk 0:00:05]}  g5 {[%clk 0:00:07]} 45. Kg3 {[%clk 0:00:05]}  h5 {[%clk 0:00:07]} 46. h4 {[%clk 0:00:05]}  g4 {[%clk 0:00:05]} 47. f3 {[%clk 0:00:05]}  gxf3 {[%clk 0:00:04]} 48. Kxf3 {[%clk 0:00:06]}  Rf8+ {[%clk 0:00:02]} 49. Kg3 {[%clk 0:00:06]}  Rg8+ {[%clk 0:00:02]} 50. Kf3 {[%clk 0:00:06]}  Rf8+ {[%clk 0:00:02]} 51. Ke3 {[%clk 0:00:06]}  Rg8 {[%clk 0:00:01]} 52. Rxc4 {[%clk 0:00:06]} 1-0


[Site "https://www.chess.com"]

[Event "Titled Tuesday Blitz November 15 Early 2022"]
[White "Nakamura, Hikaru"]
[Black "Vokhidov, Shamsiddin"]
[WhiteFideId "2016192"]
[BlackFideId "14204223"]
[WhiteElo "2909"]
[BlackElo "2619"]
[Result "1-0"]
[Round "08"]
[TimeControl "180+1"]
[Date "2022.11.15"]
[WhiteClock "0:01:34"]
[BlackClock "0:00:33"]

1. Nf3 {[%clk 0:03:00]}  c5 {[%clk 0:02:59]} 2. g3 {[%clk 0:03:00]}  g6 {[%clk 0:02:59]} 3. e4 {[%clk 0:03:00]}  Bg7 {[%clk 0:02:59]} 4. d4 {[%clk 0:03:00]}  cxd4 {[%clk 0:02:57]} 5. Nxd4 {[%clk 0:03:01]}  Nc6 {[%clk 0:02:42]} 6. Ne2 {[%clk 0:02:55]}  d6 {[%clk 0:02:26]} 7. Bg2 {[%clk 0:02:50]}  f5 {[%clk 0:02:19]} 8. exf5 {[%clk 0:02:41]}  Bxf5 {[%clk 0:02:20]} 9. O-O {[%clk 0:02:41]}  Nf6 {[%clk 0:02:20]} 10. c4 {[%clk 0:02:38]}  O-O {[%clk 0:02:17]} 11. Nbc3 {[%clk 0:02:38]}  Qd7 {[%clk 0:02:13]} 12. b3 {[%clk 0:02:32]}  Bh3 {[%clk 0:02:08]} 13. Bxh3 {[%clk 0:02:30]}  Qxh3 {[%clk 0:02:09]} 14. Nf4 {[%clk 0:02:31]}  Qd7 {[%clk 0:02:09]} 15. Bb2 {[%clk 0:02:28]}  Ne4 {[%clk 0:01:58]} 16. Qd5+ {[%clk 0:02:20]}  Kh8 {[%clk 0:01:39]} 17. Qxe4 {[%clk 0:02:17]}  e5 {[%clk 0:01:40]} 18. Nfe2 {[%clk 0:02:12]}  Rae8 {[%clk 0:01:39]} 19. Nd5 {[%clk 0:02:10]}  Nd8 {[%clk 0:01:25]} 20. Rae1 {[%clk 0:02:03]}  Ne6 {[%clk 0:01:25]} 21. h4 {[%clk 0:02:03]}  Nc5 {[%clk 0:01:20]} 22. Qe3 {[%clk 0:02:02]}  Qh3 {[%clk 0:01:16]} 23. Ba3 {[%clk 0:01:46]}  Ne6 {[%clk 0:00:41]} 24. Bxd6 {[%clk 0:01:45]}  Rf5 {[%clk 0:00:42]} 25. Qe4 {[%clk 0:01:37]}  g5 {[%clk 0:00:33]} 26. Qg2 {[%clk 0:01:34]}  Qg4 {[%clk 0:00:33]} 27. f3 {[%clk 0:01:34]} 1-0


[Site "https://www.chess.com"]